Workbook

Sheet 計算シート
A1: 年末調整 保険料控除額算出表
K2: 入力箇所
A3: 【一般の生命保険料】 | H3: 【個人年金保険料】
B5: 区分 | C5: 新 | E5: 旧 | I5: 区分 | J5: 新 | L5: 旧
B6: 本年中に支払った保険料等の額 | I6: 本年中に支払った保険料等の額
B11: 合計 | C11: Ａ | D11: =SUM(C6:D10) -> 0 | E11: Ｂ | F11: =SUM(E6:F10) -> 0 | I11: 合計 | J11: Ｄ | K11: =SUM(J6:K10) -> 0 | L11: Ｅ | M11: =SUM(L6:M10) -> 0
B12: 控除額 | C12: ① | D12: =IF(D11<=20000,D11,IF(D11>=80001,40000,IF(AND(D11>=20001,D11<=40000),ROUNDUP(D11/2+10000,0),IF(AND(D11>=40001,D11<=80000),ROUNDUP(D11/4+20000,0))))) -> 0 | E12: ② | F12: =IF(F11<=25000,F11,IF(F11>=100001,50000,IF(AND(F11>=25001,F11<=50000),ROUNDUP(F11/2+12500,0),IF(AND(F11>=50001,F11<=100000),ROUNDUP(F11/4+25000,0))))) -> 0 | I12: 控除額 | J12: ④ | K12: =IF(K11<=20000,K11,IF(K11>=80001,40000,IF(AND(K11>=20001,K11<=40000),ROUNDUP(K11/2+10000,0),IF(AND(K11>=40001,K11<=80000),ROUNDUP(K11/4+20000,0))))) -> 0 | L12: ⑤ | M12: =IF(M11<=25000,M11,IF(M11>=100001,50000,IF(AND(M11>=25001,M11<=50000),ROUNDUP(M11/2+12500,0),IF(AND(M11>=50001,M11<=100000),ROUNDUP(M11/4+25000,0))))) -> 0
B13: 控除額計（①＋②） | E13: ③ | F13: =IF(D12+F12<=40000,D12+F12,IF(D12+F12>=40001,40000)) -> 0 | I13: 控除額計（④＋⑤） | L13: ⑥ | M13: =IF(K12+M12<=40000,K12+M12,IF(K12+M12>=40001,40000)) -> 0
B14: ②と③のいずれか大きい金額 | E14: イ | F14: =IF(F12>=F13,F12,IF(F12<F13,F13)) -> 0 | I14: ⑤と⑥のいずれか大きい金額 | L14: ハ | M14: =IF(M12>=M13,M12,IF(M12<M13,M13)) -> 0
A16: 【介護医療保険料】 | H16: 【生命保険料控除額 合計】
B18: 区分 | C18: 新 | I18: イ＋ロ＋ハ | K18: =IF(F14+D25+M14<=120000,F14+D25+M14,IF(F14+D25+M14>=120001,120000)) -> 0
B19: 本年中に支払った保険料等の額
H21: 【マクロ設定】
H22: 入力リセット：ｃｔｒｌ ＋ d
B24: 合計 | C24: Ｃ | D24: =SUM(C19:D23) -> 0
B25: 控除額 | C25: ロ | D25: =IF(D24<=20000,D24,IF(D24>=80001,40000,IF(AND(D24>=20001,D24<=40000),ROUNDUP(D24/2+10000,0),IF(AND(D24>=40001,D24<=80000),ROUNDUP(D24/4+20000,0))))) -> 0
A27: 【地震保険料】
B29: 区分 | C29: 地震 | E29: 旧長期
B30: 本年中に支払った保険料等の額
B34: 合計 | C34: Ｂ | D34: =SUM(C30:D33) -> 0 | E34: Ｃ | F34: =SUM(E30:F33) -> 0
B35: 控除額計 | C35: Ｂ | D35: =IF(D34<=50000,D34,IF(D34>=50001,50000)) -> 0 | E35: Ｃ | F35: =IF(F34<=10000,F34,IF(AND(F34>=10001,F34<=20000),ROUNDUP(F34/2+5000,0),15000)) -> 0
B36: 控除額計（Ｂ＋Ｃ） | E36: =IF(D35+F35<=50000,D35+F35,IF(D35+F35>=50001,50000)) -> 0

Sheet 計算シート（入力例）
A1: 年末調整 保険料控除額算出表
K2: 入力箇所
A3: 【一般の生命保険料】 | H3: 【個人年金保険料】
B5: 区分 | C5: 新 | E5: 旧 | I5: 区分 | J5: 新 | L5: 旧
B6: 本年中に支払った保険料等の額 | C6: 84348 | E6: 58212 | I6: 本年中に支払った保険料等の額 | J6: 120000 | L6: 146960
B11: 合計 | C11: Ａ | D11: =SUM(C6:D10) -> 84348 | E11: Ｂ | F11: =SUM(E6:F10) -> 58212 | I11: 合計 | J11: Ｄ | K11: =SUM(J6:K10) -> 120000 | L11: Ｅ | M11: =SUM(L6:M10) -> 146960
B12: 控除額 | C12: ① | D12: =IF(D11<=20000,D11,IF(D11>=80001,40000,IF(AND(D11>=20001,D11<=40000),ROUNDUP(D11/2+10000,0),IF(AND(D11>=40001,D11<=80000),ROUNDUP(D11/4+20000,0))))) -> 40000 | E12: ② | F12: =IF(F11<=25000,F11,IF(F11>=100001,50000,IF(AND(F11>=25001,F11<=50000),ROUNDUP(F11/2+12500,0),IF(AND(F11>=50001,F11<=100000),ROUNDUP(F11/4+25000,0))))) -> 39553 | I12: 控除額 | J12: ④ | K12: =IF(K11<=20000,K11,IF(K11>=80001,40000,IF(AND(K11>=20001,K11<=40000),ROUNDUP(K11/2+10000,0),IF(AND(K11>=40001,K11<=80000),ROUNDUP(K11/4+20000,0))))) -> 40000 | L12: ⑤ | M12: =IF(M11<=25000,M11,IF(M11>=100001,50000,IF(AND(M11>=25001,M11<=50000),ROUNDUP(M11/2+12500,0),IF(AND(M11>=50001,M11<=100000),ROUNDUP(M11/4+25000,0))))) -> 50000
B13: 控除額計（①＋②） | E13: ③ | F13: =IF(D12+F12<=40000,D12+F12,IF(D12+F12>=40001,40000)) -> 40000 | I13: 控除額計（④＋⑤） | L13: ⑥ | M13: =IF(K12+M12<=40000,K12+M12,IF(K12+M12>=40001,40000)) -> 40000
B14: ②と③のいずれか大きい金額 | E14: イ | F14: =IF(F12>=F13,F12,IF(F12<F13,F13)) -> 40000 | I14: ⑤と⑥のいずれか大きい金額 | L14: ハ | M14: =IF(M12>=M13,M12,IF(M12<M13,M13)) -> 50000
A16: 【介護医療保険料】 | H16: 【生命保険料控除額 合計】
B18: 区分 | C18: 新 | I18: イ＋ロ＋ハ | K18: =IF(F14+D25+M14<=120000,F14+D25+M14,IF(F14+D25+M14>=120001,120000)) -> 120000
B19: 本年中に支払った保険料等の額 | C19: 49236
H21: 【マクロ設定】
H22: 入力リセット：ｃｔｒｌ ＋ d
B24: 合計 | C24: Ｃ | D24: =SUM(C19:D23) -> 49236
B25: 控除額 | C25: ロ | D25: =IF(D24<=20000,D24,IF(D24>=80001,40000,IF(AND(D24>=20001,D24<=40000),ROUNDUP(D24/2+10000,0),IF(AND(D24>=40001,D24<=80000),ROUNDUP(D24/4+20000,0))))) -> 32309
A27: 【地震保険料】
B29: 区分 | C29: 地震 | E29: 旧長期
B30: 本年中に支払った保険料等の額 | C30: 13880 | E30: 19977
B34: 合計 | C34: Ｂ | D34: =SUM(C30:D33) -> 13880 | E34: Ｃ | F34: =SUM(E30:F33) -> 19977
B35: 控除額計 | C35: Ｂ | D35: =IF(D34<=50000,D34,IF(D34>=50001,50000)) -> 13880 | E35: Ｃ | F35: =IF(F34<=10000,F34,IF(AND(F34>=10001,F34<=20000),ROUNDUP(F34/2+5000,0),15000)) -> 14989
B36: 控除額計（Ｂ＋Ｃ） | E36: =IF(D35+F35<=50000,D35+F35,IF(D35+F35>=50001,50000)) -> 28869
